bitfinex-derivatives/quotes_ETHF0:USTF0_20251031
["timestamp","ask_amount","ask_price","bid_price","bid_amount"]
[1761909970106,0.5786,3837.5,3837.4,0.2359]
[1761909970408,1.25833481,3837.5,3837.4,0.2359]
[1761909970613,1.58013481,3837.5,3837.4,0.2359]
[1761909971503,0.4594,3837.3,3837.2,9.246]
[1761909971805,1.46153481,3837.3,3837.2,9.246]
[1761909972107,0.86329769,3837.3,3837.2,9.246]
[1761909976208,0.7818,3837.3,3837.2,9.246]
[1761909976506,0.7818,3837.3,3837.2,9.4782]
[1761909976707,0.7818,3837.3,3837.2,9.793]
[1761909984215,0.86329559,3837.3,3837.2,9.793]
[1761909984914,0.7818,3837.3,3837.2,9.793]
[1761909985116,0.86329353,3837.3,3837.2,9.793]
[1761909986114,1.46113808,3837.3,3837.2,9.793]
[1761909986414,0.3496,3837.8,3837.6,0.7702]
[1761909986618,1.84790656,3838.4,3838.0,0.3402]
[1761909986915,0.4522,3838.1,3838.0,0.7956]
[1761909987107,0.53368766,3838.1,3838.0,9.8176]
[1761909987308,0.53368766,3838.1,3838.0,9.4774]
[1761909987515,0.53667865,3838.1,3838.0,50.2774]
[1761909988008,0.53667865,3838.1,3838.0,40.8]
[1761909988216,0.53667865,3838.1,3837.8,3.2078]
[1761909988217,0.4522,3837.9,3837.8,3.2078]
[1761909988409,0.53368766,3837.9,3837.8,3.2078]
[1761909988610,0.88328766,3837.9,3837.8,3.2078]
[1761909989719,0.8018,3837.6,3837.5,49.822]
[1761909990218,0.8018,3837.6,3837.5,50.1622]
[1761909991314,0.8018,3837.6,3837.5,0.3402]
[1761909991621,0.5837,3837.5,3837.4,0.2253]
[1761909991821,0.6651879,3837.5,3837.4,0.2253]
[1761909992117,1.0147879,3837.5,3837.4,0.2253]
[1761909992321,1.0147879,3837.5,3837.4,0.5655]
[1761909993921,1.0147879,3837.5,3837.4,0.7956]
[1761909994921,0.575,3837.9,3837.8,0.7956]
[1761909995120,0.65648801,3837.9,3837.8,0.7956]
[1761909996119,0.88328801,3837.9,3837.8,0.7956]
[1761909997621,0.8018,3837.7,3837.6,0.3402]
[1761909997814,0.8018,3837.5,3837.4,3.6632]
[1761909998013,0.8018,3837.5,3837.4,12.6842]
[1761909998219,0.8018,3837.5,3837.4,13.0244]
[1761909998719,0.9333,3837.5,3837.4,3.2078]
[1761909998923,0.8018,3837.1,3837.0,12.6842]
[1761909999422,0.8018,3837.1,3837.0,13.0244]
[1761910001526,0.575,3837.1,3837.0,4.0034]
[1761910001717,0.1315,3837.5,3837.1,0.3535]
[1761910001917,0.442,3837.2,3837.1,0.8124]
[1761910002322,0.7851,3837.2,3837.1,0.8124]
[1761910003428,0.7851,3837.2,3837.1,0.5818]
[1761910003632,0.7851,3837.1,3837.0,3.5613]
[1761910003821,0.7851,3837.1,3837.0,3.7896]
[1761910004023,0.7851,3837.1,3837.0,4.0202]
[1761910006430,0.7851,3836.8,3836.7,0.23080694]
[1761910006928,0.7851,3836.8,3836.7,0.58430694]
[1761910006929,1.37981572,3836.8,3836.7,0.58430694]
[1761910007432,0.7851,3836.8,3836.7,0.81490694]
[1761910011431,0.7851,3836.8,3836.7,0.00250694]
[1761910011728,0.7851,3835.9,3835.4,0.68211]
[1761910011924,0.7851,3835.9,3835.8,2.26117]
[1761910012534,0.7851,3835.9,3835.8,2.26320786]
[1761910013228,0.7851,3835.9,3835.8,0.85301004]
[1761910013433,0.7851,3835.9,3835.8,0.13921004]
[1761910013632,3.2078,3835.8,3834.2,0.3535]
[1761910013827,3.2078,3834.4,3834.2,0.3535]
[1761910014332,3.2078,3834.4,3834.1,0.3535]
[1761910014538,3.21041061,3834.4,3834.3,0.3535]
[1761910015221,3.21041061,3834.4,3834.1,0.00248832]
[1761910015420,3.21041061,3834.4,3834.1,0.35598832]
[1761910015626,3.21041061,3834.4,3834.3,0.5818]
[1761910015924,3.21041061,3834.4,3834.3,0.3535]
[1761910016228,3.21041061,3834.4,3834.3,0.5818]
[1761910016636,3.21041061,3834.4,3834.3,0.8124]
[1761910017330,0.00261061,3834.4,3834.3,0.8124]
[1761910018424,3.2078,3834.8,3834.7,0.8124]
[1761910019535,3.21039283,3834.8,3834.7,0.8124]
[1761910021838,0.00259283,3834.8,3834.7,0.8124]
[1761910025739,3.2078,3835.3,3835.2,0.8124]
[1761910026735,3.21011369,3835.3,3835.2,0.8124]
[1761910028140,3.21011369,3835.3,3835.2,0.3535]
[1761910029028,3.21011369,3835.3,3834.8,0.3535]
[1761910029442,3.21011369,3835.3,3834.5,0.4959]
[1761910029638,3.21011369,3835.3,3834.6,0.3535]
[1761910029939,3.21011369,3835.3,3835.2,0.3535]
[1761910030649,3.21011369,3835.3,3835.2,0.8124]
[1761910033544,0.00231369,3835.3,3835.2,0.8124]
[1761910035034,0.00231369,3835.3,3835.0,0.1424]
[1761910035035,0.00231369,3835.3,3835.0,0.4713]
[1761910035240,3.21011369,3835.3,3835.2,0.3289]
[1761910036348,3.29166198,3835.3,3835.2,0.3289]
[1761910036647,3.89051744,3835.3,3835.2,0.3289]
[1761910036941,3.89051744,3835.3,3835.2,0.5538]
[1761910037842,3.89051744,3835.3,3835.2,0.7792]
[1761910038046,0.68271744,3835.3,3835.2,0.7792]
[1761910038347,0.08385572,3835.3,3835.2,0.7792]
[1761910038535,0.00231369,3835.3,3835.2,0.7792]
[1761910039642,0.08385428,3835.3,3835.2,0.7792]
[1761910040547,0.68433103,3835.3,3835.2,0.7792]
[1761910043247,0.00231369,3835.3,3835.2,0.7792]
[1761910045663,0.08384914,3835.3,3835.2,0.7792]
[1761910046451,0.68577479,3835.3,3835.2,0.7792]
[1761910049253,0.68577479,3835.3,3835.2,1.10783]
[1761910049752,0.00231369,3835.3,3835.2,1.10783]
[1761910051341,3.2078,3836.0,3835.4,0.3286]
[1761910051547,3.2078,3836.0,3835.9,0.7889]
[1761910051854,3.89083384,3836.0,3835.9,0.7889]
[1761910052456,3.89413544,3836.0,3835.9,0.7889]
[1761910054058,0.68633544,3836.0,3835.9,3.9967]
[1761910054251,0.0033016,3836.0,3835.9,3.9967]
[1761910059558,0.0033016,3836.0,3835.9,4.32527]
[1761910060263,0.0033016,3836.0,3835.9,3.9967]
[1761910061060,0.0033016,3836.0,3835.9,0.7889]
[1761910061262,0.0033016,3836.0,3835.9,3.9967]
[1761910064664,0.0033016,3836.0,3835.9,0.7889]
[1761910065168,0.0033016,3836.0,3835.9,3.9967]
[1761910075284,1.39570656,3837.5,3837.1,0.4516]
[1761910075479,4.60350656,3838.1,3837.6,0.5647]
[1761910075783,0.68280335,3838.0,3837.7,0.3365]
[1761910075984,3.2078,3837.8,3837.7,0.3365]
[1761910076288,3.89256744,3837.8,3837.7,0.33880176]
[1761910078485,3.89256744,3837.8,3837.7,0.56700176]
[1761910078683,3.89256744,3837.8,3837.7,0.33880176]
[1761910080282,3.89256744,3837.8,3837.7,0.56700176]
[1761910080591,3.89256744,3837.8,3837.7,0.79040176]
[1761910080592,0.68476744,3837.8,3837.7,0.79040176]
[1761910081490,0.68476744,3837.8,3837.7,4.32661176]
[1761910081491,0.00196409,3837.8,3837.7,4.32661176]
[1761910083793,3.2078,3839.1,3839.0,0.4785]
[1761910083994,3.88811277,3839.1,3839.0,0.7067]
[1761910084195,3.88811277,3839.1,3839.0,0.9301]
[1761910084895,3.89133945,3839.1,3839.0,0.9301]
[1761910085297,3.21102668,3839.1,3839.0,0.9301]
[1761910091990,3.21102668,3839.1,3839.0,0.7067]
[1761910093798,3.21102668,3839.1,3839.0,0.9394]
[1761910097699,0.00322668,3839.1,3839.0,0.9394]
[1761910103903,0.08468854,3839.1,3839.0,0.9394]
[1761910105504,0.68315929,3839.1,3839.0,0.9394]
[1761910110814,0.60169743,3839.1,3839.0,0.9394]
[1761910111114,0.6831592,3839.1,3839.0,0.9394]
[1761910123724,0.6831593,3839.1,3839.0,0.9394]
[1761910129424,0.6831593,3839.1,3839.0,0.4785]
[1761910129628,0.6831593,3839.1,3838.5,0.142]
[1761910129629,3.8909593,3839.1,3838.7,0.3543]
[1761910129823,2.07547907,3839.0,3838.7,0.3543]
[1761910130023,2.07547907,3838.9,3838.7,0.3543]
[1761910130229,0.67993262,3838.8,3838.7,0.3543]
[1761910135435,0.67993262,3838.8,3838.7,0.7967]
[1761910139534,0.67993262,3838.8,3838.7,0.5686]
[1761910140635,0.67993262,3838.8,3838.7,0.3543]
[1761910141339,0.67993262,3838.8,3838.7,0.7967]
[1761910141834,0.68839222,3838.8,3838.7,0.7967]
[1761910149840,0.68839222,3838.8,3838.7,0.5686]
[1761910153745,0.68839222,3838.8,3838.7,0.7967]
[1761910155955,0.68839222,3838.8,3838.7,0.3543]
[1761910156450,2.08393867,3838.8,3838.7,0.3543]
[1761910159354,0.68839222,3838.8,3838.7,0.3543]
[1761910161454,2.54933431,3838.8,3838.6,0.3478]
[1761910161653,12.92719222,3838.7,3838.6,0.3478]
[1761910163253,12.92719222,3838.7,3838.6,0.5646]
[1761910163456,12.92719222,3838.7,3838.6,0.7797]
[1761910165647,9.71939222,3838.7,3838.6,0.7797]
[1761910166360,11.11412608,3838.7,3838.6,0.7797]
[1761910167158,9.71939222,3838.7,3838.6,0.7797]
[1761910167962,0.68839222,3838.7,3838.6,0.7797]
[1761910168687,0.68839222,3838.7,3838.6,0.3478]
[1761910168909,2.08312608,3838.7,3838.6,0.3478]
[1761910171367,2.00166421,3838.7,3838.6,0.5646]
[1761910171665,2.08314353,3838.7,3838.6,0.5646]
[1761910172766,2.08314353,3838.7,3838.6,0.3478]
[1761910173168,0.68840967,3838.7,3838.6,0.3478]
[1761910173865,0.68840967,3838.7,3838.5,0.4898]
[1761910174066,2.08305915,3838.6,3838.5,0.4898]
[1761910174667,0.68840967,3838.6,3838.5,0.4898]
[1761910176370,1.47609563,3838.6,3838.5,0.4898]
[1761910176569,2.08302598,3838.6,3838.5,0.4898]
[1761910176765,11.11502598,3838.6,3838.5,0.4898]
[1761910179772,11.11502598,3838.6,3838.5,0.3478]
[1761910180371,11.11502598,3838.6,3838.5,0.4798]
[1761910181375,11.11503985,3838.6,3838.5,0.4798]
[1761910182377,9.72040967,3838.6,3838.5,0.4798]
[1761910183676,9.72040967,3838.6,3838.5,0.6966]
[1761910184271,11.1149155,3838.6,3838.5,0.6966]
[1761910184475,9.72040967,3838.6,3838.5,0.6966]
[1761910185963,9.72040967,3838.6,3838.5,0.9321]
[1761910187378,11.1149155,3838.6,3838.5,0.9321]
[1761910187977,14.3227155,3838.6,3838.5,0.9321]
[1761910188781,14.3227155,3838.6,3838.5,0.6966]
[1761910188976,12.92820967,3838.6,3837.9,0.3366]
[1761910189179,3.2078,3838.1,3837.8,0.3366]
[1761910189481,9.71940967,3838.0,3837.8,0.3366]
[1761910189679,0.68840967,3837.9,3837.7,0.33890176]
[1761910189978,2.08240041,3837.8,3837.7,0.33890176]
[1761910194682,5.29020041,3837.8,3837.7,0.33890176]
[1761910195077,5.29020041,3837.8,3837.7,0.57120176]
[1761910195384,5.29020041,3837.8,3837.5,0.78317043]
[1761910195700,9.73040967,3837.7,3837.6,0.3366]
[1761910195980,9.73040967,3837.7,3837.6,0.5689]
[1761910196380,11.12180689,3837.7,3837.6,0.33944757]
[1761910196681,9.73040967,3837.7,3837.6,0.00284757]
[1761910201572,9.72840967,3837.7,3837.6,0.80724757]
[1761910201782,11.11852013,3837.7,3837.6,0.57174757]
[1761910204184,9.72840967,3837.7,3837.6,0.80724757]
[1761910204582,9.72840967,3837.7,3837.6,0.57174757]
[1761910204784,9.72840967,3837.7,3837.6,0.33944757]
[1761910206383,11.11852013,3837.7,3837.6,0.33944757]
[1761910206582,11.11852013,3837.7,3837.6,0.00284757]
[1761910207388,11.11852013,3837.7,3837.6,0.33944757]
[1761910208589,11.11854789,3837.7,3837.6,0.33944757]
[1761910208784,9.72843743,3837.7,3837.6,0.57174757]
[1761910210594,9.72843743,3837.7,3837.6,0.33944757]
[1761910210889,9.72843743,3837.7,3837.6,0.00284757]
[1761910210890,11.11854789,3837.7,3837.6,0.00284757]
[1761910211085,9.72843743,3837.7,3837.6,0.00284757]
[1761910212390,11.58937952,3837.7,3837.6,0.00284757]
[1761910213191,11.58937952,3837.7,3837.5,0.44657043]
[1761910213388,11.59137952,3837.6,3837.5,0.44657043]
[1761910213587,11.5913906,3837.6,3837.5,0.44657043]
[1761910214391,11.5913906,3837.6,3837.5,0.44962221]
[1761910215396,11.5913906,3837.6,3837.5,0.78332221]
[1761910215697,0.68844851,3837.6,3837.5,1.14232221]
[1761910215994,9.72944851,3837.6,3837.5,1.14232221]
[1761910217099,9.72944851,3837.6,3837.5,1.37132221]
[1761910218402,11.5903906,3837.6,3837.5,1.37132221]
[1761910225607,11.5903906,3837.6,3837.5,0.92452221]
[1761910225797,11.5903906,3837.6,3837.5,0.44962221]
[1761910226103,9.72944851,3837.6,3837.5,0.79682221]
[1761910226703,9.72944851,3837.6,3837.5,0.92702221]
[1761910226899,9.72944851,3837.6,3837.5,1.16072221]
[1761910227108,11.58883409,3837.6,3837.5,1.16072221]
[1761910227903,11.58883409,3837.6,3837.5,1.39772221]
[1761910229401,11.61055773,3837.6,3837.5,1.39772221]
[1761910229602,9.75117215,3837.6,3837.5,1.39772221]
[1761910230907,0.71017215,3837.6,3837.5,1.39772221]
[1761910231107,9.74617215,3837.6,3837.5,1.39772221]
[1761910231800,9.74615819,3837.6,3837.5,1.39772221]
[1761910234405,9.74615819,3837.6,3837.5,0.92702221]
[1761910236212,9.74615819,3837.6,3837.5,1.39772221]
[1761910243716,11.14040279,3837.6,3837.5,1.39772221]
[1761910246918,9.74615819,3837.6,3837.5,1.39772221]
[1761910253122,9.74615191,3837.6,3837.5,1.39772221]
[1761910253321,9.11749792,3837.6,3837.5,1.39772221]
[1761910254923,9.73388089,3837.6,3837.5,1.39772221]
[1761910259824,2.32617761,3838.9,3837.6,0.0784]
[1761910260029,0.1356,3840.0,3838.8,3.2078]
[1761910260030,0.3571,3840.0,3838.8,3.2078]
[1761910260323,0.3571,3840.0,3839.5,3.53606]
[1761910260521,0.3248,3839.8,3839.5,3.53606]
[1761910260723,0.3248,3839.7,3839.5,3.2078]
[1761910260922,0.7776,3839.6,3839.5,4.14495199]
[1761910261431,0.7776,3839.6,3839.5,3.2078]
[1761910263933,0.3248,3839.6,3839.5,3.2078]
[1761910264136,0.5463,3839.6,3839.5,3.2078]
[1761910265835,0.3248,3839.6,3839.5,3.2078]
[1761910267935,0.5463,3839.6,3839.5,3.2078]
[1761910268122,0.7776,3839.6,3839.5,3.2078]
[1761910274033,0.456,3839.3,3839.2,40.8]
[1761910274239,0.8133,3839.3,3839.2,40.8]
[1761910279350,0.3573,3839.3,3839.2,40.8]
[1761910279643,0.00323615,3839.7,3839.6,0.32825]
[1761910279845,0.00323615,3839.7,3839.6,3.53605]
[1761910281640,0.33203615,3839.7,3839.6,3.53605]
[1761910282741,0.00323615,3839.7,3839.6,3.53605]
[1761910288351,0.3288,3839.9,3839.8,0.32823]
[1761910288550,0.4644,3840.0,3839.8,0.32823]
[1761910289053,0.3288,3839.9,3839.8,0.32823]
[1761910289354,0.33103698,3839.9,3839.8,0.32823]
[1761910289556,0.33103698,3839.9,3839.8,9.37223]
[1761910290458,0.33103698,3839.9,3839.8,10.30938199]
[1761910291659,0.00223698,3839.9,3839.8,10.30938199]
[1761910293666,0.3288,3840.3,3840.1,0.32821]
[1761910293865,0.3288,3840.3,3840.2,3.2078]
[1761910294066,0.41023152,3840.3,3840.2,3.2078]
[1761910294258,0.4644,3840.5,3840.3,0.32819]
[1761910294565,0.33174044,3840.5,3840.4,0.93575311]
[1761910295068,0.33174044,3840.5,3840.3,1.2661056]
[1761910295863,0.33174044,3840.5,3840.4,40.8]
[1761910296064,0.33174044,3840.5,3840.4,49.842]
[1761910296271,0.00294044,3840.5,3840.4,49.842]
[1761910296464,0.00294044,3840.5,3840.4,50.77775311]
[1761910296964,0.46834044,3840.5,3840.4,40.8]
[1761910297267,0.46834044,3840.5,3840.3,0.9379156]
[1761910297268,0.7729,3840.4,3840.3,0.00216249]
[1761910297567,0.7729,3839.8,3839.7,3.2078]
[1761910297867,0.3288,3839.4,3839.3,3.2078]
[1761910298066,0.7729,3839.4,3839.3,3.2078]
[1761910298566,0.7729,3839.4,3839.3,3.20975406]
[1761910300369,1.11598668,3839.4,3839.3,3.20975406]
[1761910300557,1.19744422,3839.4,3839.3,0.00195406]
[1761910300960,0.774,3838.6,3838.5,3.2078]
[1761910301365,1.11708668,3838.6,3838.5,3.2078]
[1761910301966,1.11708668,3838.6,3838.5,3.21084379]
[1761910306868,0.3313,3838.6,3838.5,3.21084379]
[1761910307469,0.774,3838.6,3838.5,3.21084379]
[1761910308167,0.5579,3838.6,3838.5,3.21084379]
[1761910308369,0.3313,3838.6,3838.5,3.21084379]
[1761910309871,0.3313,3838.9,3838.5,12.25784379]
[1761910311573,0.3313,3838.9,3838.7,0.32833]
[1761910311768,0.1386,3839.0,3838.8,0.32831]
[1761910311769,0.3313,3839.0,3838.8,0.32831]
[1761910311971,0.5579,3839.4,3838.9,3.2078]
[1761910312271,0.3313,3839.3,3838.8,0.32831]
[1761910312573,0.3313,3839.3,3839.2,3.2078]
[1761910313672,1.11708668,3839.3,3839.2,3.2078]
[1761910313865,0.3313,3838.9,3838.7,3.2078]
[1761910314060,0.774,3838.8,3838.7,3.2078]
[1761910316677,0.774,3838.6,3838.5,0.00304379]
[1761910316976,1.11708668,3838.6,3838.5,0.00304379]
[1761910327082,1.19856375,3838.6,3838.5,0.00304379]
[1761910327278,0.774,3837.6,3837.5,1.38232354]
[1761910327575,1.11708668,3837.6,3837.5,0.44657043]
[1761910328277,1.11972101,3837.6,3837.5,0.44956862]
[1761910328672,1.20122182,3837.6,3837.5,0.44956862]
[1761910333288,1.11972101,3837.6,3837.5,0.44956862]
[1761910334286,1.11972101,3837.6,3836.8,3.2078]
[1761910334487,1.13778668,3836.9,3836.8,3.436]
[1761910335478,1.13778668,3836.9,3836.8,3.43838412]
[1761910336091,1.13778668,3836.9,3836.8,3.21018412]
[1761910336483,1.13778668,3836.9,3836.8,3.98958412]
[1761910336788,0.66928668,3836.9,3836.8,3.98958412]
[1761910337288,0.90578668,3836.9,3836.8,3.98958412]
[1761910338380,1.13778668,3836.9,3836.8,3.98958412]
[1761910339391,1.13778668,3836.9,3836.8,3.65328412]
[1761910339588,1.13778668,3836.9,3836.8,3.43838412]
[1761910345090,1.13778668,3836.9,3836.8,3.65628412]
[1761910346193,1.13778668,3836.9,3836.8,4.00018412]
[1761910346402,1.13778668,3836.9,3836.8,3.65628412]
[1761910346696,1.13778668,3836.9,3836.8,3.43838412]
[1761910347095,1.13778668,3836.9,3836.8,3.21018412]
[1761910347592,1.13778668,3836.9,3836.8,3.43368412]
[1761910348294,1.13778668,3836.9,3836.8,0.00238412]
[1761910348490,1.21930321,3836.9,3836.8,0.00238412]
[1761910352098,1.13778668,3836.9,3836.8,0.00238412]
[1761910352893,1.13778668,3836.9,3836.8,0.22588412]
[1761910353094,1.13778668,3836.9,3836.8,0.78768412]
[1761910354502,0.5627,3836.9,3836.8,0.78768412]
[1761910356497,1.22199593,3836.9,3836.8,0.44378412]
[1761910356797,1.22199593,3836.9,3836.8,0.22588412]
[1761910357793,1.22199593,3836.9,3836.8,0.00238412]
[1761910361408,0.87890925,3836.9,3836.8,0.00238412]
[1761910361598,1.22199593,3836.9,3836.8,0.00238412]
[1761910365603,1.22199593,3836.9,3836.8,0.21858412]
[1761910365801,0.40770925,3836.9,3836.8,0.77548412]
[1761910367014,0.3436,3837.2,3837.1,0.7731]
[1761910367319,0.42510195,3837.2,3837.1,0.7731]
[1761910367608,0.76818863,3837.2,3837.1,0.7731]
[1761910367808,0.42510195,3837.2,3837.1,1.10157]
[1761910368010,0.5804,3837.5,3837.4,0.7731]
[1761910368205,1.00498626,3837.5,3837.4,0.7731]
[1761910369306,0.92348668,3837.5,3837.4,0.7731]
[1761910369605,0.5804,3837.5,3837.4,0.7731]
[1761910369806,0.3436,3837.5,3837.4,0.7731]
[1761910371308,0.3436,3837.5,3837.4,3.9809]
[1761910373407,0.00263433,3837.6,3837.5,0.2162]
[1761910373612,0.00263433,3837.6,3837.5,0.8816]
[1761910375514,0.00263433,3837.6,3837.5,1.21003]
[1761910376014,0.58303433,3837.6,3837.5,1.10153]
[1761910376313,1.14232101,3837.6,3837.5,0.7731]
[1761910377415,0.7966,3837.2,3837.1,40.8]
[1761910377915,0.5804,3837.1,3837.0,3.9809]
[1761910378109,0.7966,3837.1,3837.0,3.9809]
[1761910378612,0.7966,3837.1,3837.0,44.7809]
[1761910379010,0.7966,3837.1,3837.0,3.9809]
[1761910379710,1.13968668,3837.1,3837.0,3.424]
[1761910379911,0.7966,3836.9,3836.8,0.00238412]
[1761910380114,1.13968668,3836.9,3836.8,0.00238412]
[1761910380317,1.13968668,3836.9,3836.8,0.21858412]
[1761910381013,1.15361513,3836.9,3836.8,0.21858412]
[1761910381211,1.15901903,3836.9,3836.8,0.21858412]
[1761910381413,1.15901903,3836.9,3836.8,0.77548412]
[1761910381717,0.59973235,3836.9,3836.8,0.77548412]
[1761910381915,0.01933235,3836.9,3836.8,0.77548412]
[1761910384717,0.34623433,3837.6,3837.5,0.7731]
[1761910385013,0.58303433,3837.6,3837.5,0.7731]
[1761910385318,1.14232101,3837.6,3837.5,0.2162]
[1761910385711,0.7966,3837.3,3837.2,3.2078]
[1761910386216,1.13968668,3837.3,3837.2,3.424]
[1761910387012,0.3436,3837.3,3837.2,3.9809]
[1761910387820,0.7161,3837.5,3837.4,0.7731]
[1761910388417,0.9323,3837.5,3837.4,0.7731]
[1761910388622,1.27538668,3837.5,3837.4,0.7731]
[1761910388823,1.27538668,3837.5,3837.4,0.4334]
[1761910389825,1.27538668,3837.5,3837.4,0.7731]
[1761910391322,1.27538668,3837.5,3837.4,0.4334]
[1761910391622,1.35688794,3837.5,3837.4,0.4334]
[1761910392925,1.35688794,3837.5,3837.4,0.2162]
[1761910393126,0.8068,3837.2,3837.1,0.7939]
[1761910393326,0.8068,3837.2,3837.1,0.2337]
[1761910393521,1.14988668,3837.2,3837.1,0.2337]
[1761910395017,1.14988668,3837.2,3836.8,3.21018412]
[1761910395018,0.8068,3836.9,3836.8,3.21018412]
[1761910395527,1.14988668,3836.9,3836.8,3.44388412]
[1761910398826,1.14988668,3836.9,3836.8,3.21018412]
[1761910399822,1.14988668,3836.9,3836.8,3.43538412]
[1761910400131,1.14988668,3836.9,3836.8,3.99898412]
[1761910401630,1.14988668,3836.9,3836.8,0.79118412]
[1761910401931,1.23139615,3836.9,3836.8,0.00238412]
[1761910405619,4.43919615,3836.9,3836.8,0.00238412]
[1761910406221,4.43919615,3836.9,3835.7,4.14585901]
[1761910406422,0.3705,3836.0,3835.9,0.2252]
[1761910406622,0.5984,3836.0,3835.9,0.2252]
[1761910406829,1.28468668,3836.0,3835.9,0.7888]
[1761910407428,1.28468668,3836.0,3835.9,0.79109482]
[1761910410427,1.14738668,3836.0,3835.9,0.79109482]
[1761910411232,3.2078,3836.9,3836.1,0.3447]
[1761910411430,0.5711,3836.6,3836.5,0.7888]
[1761910411624,0.34308668,3836.8,3836.7,0.7888]
[1761910411830,0.1357,3837.5,3837.2,0.4441]
[1761910411831,3.6689,3837.3,3837.2,0.4441]
[1761910412035,3.7504136,3837.3,3837.2,0.4441]
[1761910412234,4.43670028,3837.3,3837.2,0.4441]
[1761910416938,1.22890028,3837.3,3837.2,0.4441]
[1761910418444,1.14738668,3837.3,3837.2,0.7888]
[1761910420042,1.14738668,3837.3,3837.2,0.4441]
[1761910420748,1.14738668,3837.3,3837.2,0.7888]
[1761910421351,1.14738668,3837.3,3837.2,0.4441]
[1761910421647,1.14738668,3837.3,3837.2,0.2252]
[1761910422250,1.2288884,3837.3,3837.2,0.2252]
[1761910423149,0.8137,3837.1,3837.0,0.2291]
[1761910423450,0.8137,3836.8,3836.7,0.2291]
[1761910423842,0.8137,3836.8,3836.7,0.7953]
[1761910424746,0.8137,3836.8,3836.5,3.2078]
[1761910424949,0.9554,3836.5,3836.3,0.93805901]
[1761910425147,0.23,3836.0,3835.8,0.93805901]
[1761910425351,0.9554,3836.0,3835.7,3.2078]
[1761910425653,1.29848668,3836.0,3835.7,3.2078]
[1761910428552,1.29848668,3836.0,3835.3,3.558]
[1761910430756,1.29848668,3836.0,3835.9,0.44739482]
[1761910431350,1.29848668,3836.0,3835.9,0.23139482]
[1761910431552,1.29848668,3836.0,3835.9,0.00229482]
[1761910441573,0.92128668,3836.0,3835.9,0.79759482]
[1761910441869,0.92128668,3836.0,3835.9,4.00539482]
[1761910442666,0.5782,3836.0,3835.9,4.00539482]
[1761910442866,0.6072,3836.5,3836.4,0.7953]
[1761910443063,0.1417,3836.5,3836.0,0.3502]
[1761910443269,0.9554,3836.5,3836.4,0.2291]
[1761910443660,0.8137,3836.5,3836.4,0.7953]
[1761910443868,0.3482,3836.5,3836.4,0.7953]
[1761910444070,3.4378,3836.8,3836.7,0.7953]
[1761910444271,3.2078,3836.8,3836.7,0.7953]
[1761910444669,3.786,3836.8,3836.7,0.7953]
[1761910444875,4.0215,3836.8,3836.7,0.7953]
[1761910446677,4.0215,3836.8,3836.7,0.4451]
[1761910447678,0.8137,3836.8,3836.7,0.4451]
[1761910448774,0.8137,3836.8,3836.7,0.7953]
[1761910448974,0.8137,3836.8,3836.7,0.2291]
[1761910449776,0.4655,3836.6,3836.5,0.2291]
[1761910449980,0.4655,3836.4,3836.3,3.2078]
[1761910450275,0.8137,3836.4,3836.3,3.2078]
[1761910450475,0.8137,3836.4,3836.3,4.0031]
[1761910451577,0.8137,3836.4,3836.3,3.6529]
[1761910451980,0.8137,3836.4,3836.3,3.9815]
[1761910452572,0.8137,3836.4,3836.3,3.6529]
[1761910452771,0.1417,3836.5,3835.9,0.94035383]
[1761910452772,0.5496,3836.0,3835.9,3.68139482]
[1761910452974,0.3235,3836.0,3835.9,3.68139482]
[1761910453281,0.3235,3836.0,3835.9,4.00999482]
[1761910453475,0.6032,3836.5,3836.4,0.2358]
[1761910453676,0.94628668,3836.5,3836.4,0.2358]
[1761910453983,1.26978668,3836.5,3836.4,0.2358]
[1761910454385,1.26978668,3836.5,3836.4,0.4713]
[1761910455786,0.9267,3836.5,3836.4,0.4713]
[1761910455986,1.26978668,3836.5,3836.4,0.4713]
[1761910457287,0.89268668,3836.5,3836.4,0.7999]
[1761910457485,0.3235,3836.5,3836.4,0.7999]
[1761910457686,0.5545,3836.5,3836.4,0.7999]
[1761910457888,0.9158,3836.5,3836.4,0.7999]
[1761910459389,0.7763,3836.5,3836.4,0.7999]
[1761910459786,0.5545,3836.5,3836.4,0.7999]
[1761910462592,0.5545,3836.5,3836.4,4.0077]
[1761910462889,0.1417,3837.0,3836.4,4.33622]
[1761910463190,0.5945,3837.0,3836.9,0.2337]
[1761910463383,0.67601086,3837.0,3836.9,0.2337]
[1761910463584,1.36079754,3837.0,3836.9,0.2337]
[1761910463894,0.9362,3837.0,3836.9,0.7965]
[1761910464791,0.9362,3837.0,3836.9,0.4487]
[1761910465093,0.9362,3837.0,3836.9,0.7965]
[1761910465686,0.9362,3837.0,3836.9,0.4487]
[1761910466104,0.9362,3837.0,3836.9,0.7965]
[1761910466695,0.7945,3837.0,3836.9,0.7965]
[1761910466998,0.5727,3837.0,3836.9,4.0043]
[1761910467288,0.4528,3837.5,3837.4,0.7965]
[1761910467489,0.5923,3837.5,3837.4,0.4487]
[1761910467693,0.93538668,3837.5,3837.4,0.4487]
[1761910467891,1.27708668,3837.5,3837.4,0.4487]
[1761910469891,1.27708668,3837.5,3837.4,0.7965]
[1761910470697,1.27708668,3837.5,3837.4,0.4487]
[1761910472595,0.2218,3837.3,3837.2,0.2337]
[1761910472900,0.4528,3837.3,3837.2,0.7965]
[1761910473101,0.7945,3837.3,3837.2,0.7965]
[1761910477302,0.7945,3837.3,3837.2,0.4487]
[1761910477599,0.934,3837.0,3836.9,3.2078]
[1761910479402,1.27708668,3837.0,3836.9,3.2078]
[1761910481202,0.2167,3836.5,3836.4,1.50235901]
[1761910481504,0.5478,3836.5,3836.4,1.72625901]
[1761910481703,0.5478,3836.5,3836.4,2.05478901]
[1761910481897,0.3311,3836.5,3836.4,2.05478901]
[1761910483103,0.3562,3837.0,3836.9,0.2171]
[1761910483307,0.583,3837.0,3836.9,0.2171]
[1761910483607,0.92608668,3837.0,3836.9,0.2171]
[1761910483806,1.25718668,3837.0,3836.9,0.2171]
[1761910485910,0.9141,3837.0,3836.9,0.7882]
[1761910486710,0.9141,3837.0,3836.9,0.441]
[1761910488506,0.48258668,3837.0,3836.6,0.2171]